bitfinex-derivatives/quotes_ETHF0:USTF0_20230902
["timestamp","ask_amount","ask_price","bid_price","bid_amount"]
[1693690004039,0.00329517,1638.0,1637.9,16.8795122]
[1693690004441,0.00329517,1638.0,1637.9,16.9405122]
[1693690004835,0.00329517,1638.0,1637.9,16.8795122]
[1693690006034,0.00329517,1638.0,1637.9,10.93888144]
[1693690006241,0.00329517,1638.0,1637.9,13.86704496]
[1693690008438,0.00329517,1638.0,1637.9,8.42316352]
[1693690016352,0.00329517,1638.0,1637.9,14.66982589]
[1693690024565,0.00329517,1638.0,1637.9,11.4778209]
[1693690024861,0.00329517,1638.0,1637.9,14.66982589]
[1693690027559,4.92939517,1638.0,1637.9,14.66982589]
[1693690030664,6.53161635,1638.0,1637.9,15.46976788]
[1693690031466,4.92939517,1638.0,1637.9,15.47235073]
[1693690031964,4.92939517,1638.0,1637.9,15.47257858]
[1693690032164,4.92939517,1638.0,1637.9,11.4778209]
[1693690032365,4.92939517,1638.0,1637.9,15.47259043]
[1693690034568,6.53161635,1638.0,1637.9,15.47259043]
[1693690035063,4.92939517,1638.0,1637.9,15.47259043]
[1693690038463,6.53161635,1638.0,1637.9,15.47259043]
[1693690039968,4.92939517,1638.0,1637.9,15.47259043]
[1693690041674,6.53161635,1638.0,1637.9,15.47259043]
[1693690041871,4.92939517,1638.0,1637.9,15.47259043]
[1693690042577,6.53161635,1638.0,1637.9,15.47259043]
[1693690044682,4.92939517,1638.0,1637.9,15.47259043]
[1693690044876,4.92939517,1638.0,1637.9,11.4778209]
[1693690046478,4.92939517,1638.0,1637.9,15.4719439]
[1693690046686,6.53161635,1638.0,1637.9,15.4719439]
[1693690051385,4.92939517,1638.0,1637.9,15.4719439]
[1693690051583,6.53161635,1638.0,1637.9,15.4719439]
[1693690053184,4.92939517,1638.0,1637.9,15.4719439]
[1693690053685,4.92939517,1638.0,1637.9,11.4778209]
[1693690055390,1.17291475,1638.2,1638.1,0.0611]
[1693690055589,2.4632,1638.2,1638.1,15.4820155]
[1693690055884,2.4632,1638.2,1638.1,18.53667288]
[1693690056090,2.4632,1638.2,1638.1,13.74785738]
[1693690056286,0.01,1638.3,1638.1,18.53265525]
[1693690056488,0.01,1638.3,1638.2,8.61075738]
[1693690058191,0.01,1638.3,1638.2,12.59495981]
[1693690058699,3.61791475,1638.5,1638.3,5.1982]
[1693690058992,2.445,1638.5,1638.4,6.24190136]
[1693690059193,2.445,1638.5,1638.4,5.44444403]
[1693690059494,4.83794913,1638.5,1638.4,8.31160755]
[1693690059679,7.42164913,1638.5,1638.4,8.31160755]
[1693690060282,5.0287,1638.5,1638.4,8.31160755]
[1693690061691,5.0287,1638.5,1638.4,9.90434182]
[1693690063792,5.0287,1638.5,1638.4,7.51455517]
[1693690068694,5.0287,1638.5,1638.4,4.45989779]
[1693690070698,7.42164913,1638.5,1638.4,4.45989779]
[1693690072691,5.0287,1638.5,1638.4,4.45989779]
[1693690073596,7.42164913,1638.5,1638.4,4.45989779]
[1693690075298,5.0287,1638.5,1638.4,4.45989779]
[1693690075696,5.0287,1638.5,1638.4,7.51374268]
[1693690079200,7.42164913,1638.5,1638.4,7.51374268]
[1693690079500,5.0287,1638.5,1638.4,7.51374268]
[1693690080099,7.42164913,1638.5,1638.4,7.51374268]
[1693690080401,7.42164913,1638.5,1638.4,9.10825239]
[1693690080402,5.0287,1638.5,1638.4,9.10825239]
[1693690080594,5.0287,1638.5,1638.4,5.92100841]
[1693690080901,5.99246248,1638.6,1638.4,11.41557116]
[1693690080902,0.49746248,1638.6,1638.4,11.41557116]
[1693690081100,2.5639,1638.8,1638.5,7.76493648]
[1693690081298,2.5639,1638.8,1638.7,12.71289615]
[1693690081491,5.061,1638.8,1638.7,14.85539754]
[1693690083805,5.061,1638.8,1638.7,14.05729082]
[1693690090698,0.01,1639.1,1638.9,0.061]
[1693690090900,1.36329209,1639.1,1639.0,12.21867773]
[1693690091101,1.36329209,1639.1,1639.0,15.27208537]
[1693690091304,6.66718415,1639.4,1639.0,16.06537424]
[1693690091506,15.9018919,1639.5,1639.2,5.495]
[1693690091701,2.58843827,1639.5,1639.2,5.495]
[1693690091902,0.48154637,1639.5,1639.3,2.86716352]
[1693690092204,37.78,1639.6,1639.3,2.86716352]
[1693690092403,1.17210347,1639.5,1639.3,2.86716352]
[1693690092604,27.78,1639.6,1639.3,2.86716352]
[1693690092900,37.78,1639.6,1639.3,2.86716352]
[1693690093107,2.39294913,1639.5,1639.3,2.86716352]
[1693690093405,3.565046,1639.5,1639.3,2.86716352]
[1693690093708,2.39294913,1639.5,1639.3,2.86716352]
[1693690094105,28.71193639,1639.6,1639.3,10.00955034]
[1693690094106,2.5089,1639.4,1639.3,10.00955034]
[1693690094302,2.5089,1639.4,1639.3,13.06170937]
[1693690094506,2.5089,1639.4,1639.3,15.44157597]
[1693690094705,2.5089,1639.4,1639.3,17.70939575]
[1693690094902,0.64741776,1639.7,1639.4,0.061]
[1693690095107,0.64741776,1639.7,1639.6,5.495]
[1693690095304,37.63488172,1640.0,1639.6,5.495]
[1693690095305,22.285,1640.0,1639.8,0.061]
[1693690095604,26.33659887,1640.0,1639.8,2.92816352]
[1693690095806,22.285,1640.0,1639.9,5.556]
[1693690096106,0.4938175,1640.1,1640.0,0.061]
[1693690096302,13.795,1640.4,1640.2,0.061]
[1693690096613,7.88794913,1640.3,1640.1,3.95696781]
[1693690096811,6.01334925,1640.3,1640.1,3.95696781]
[1693690097002,5.495,1640.5,1640.1,5.495]
[1693690098304,7.9749,1640.5,1640.2,2.26993648]
[1693690098504,2.39294913,1640.4,1640.2,2.26993648]
[1693690098711,2.39294913,1640.4,1640.2,5.1371]
[1693690099507,5.495,1640.3,1640.0,3.05071112]
[1693690099705,7.88794913,1640.2,1640.0,3.05071112]
[1693690099903,3.64060005,1640.5,1640.1,15.34773701]
[1693690100114,3.64060005,1640.5,1640.4,4.72987886]
[1693690100115,2.72534111,1640.5,1640.4,4.72987886]
[1693690100313,10.61329024,1640.5,1640.4,7.7807539]
[1693690100711,10.61329024,1640.5,1640.4,3.05087504]
[1693690100907,10.61329024,1640.5,1640.4,6.99108455]
[1693690101211,20.61329024,1640.5,1640.4,5.77557592]
[1693690101708,20.61329024,1640.5,1640.4,5.45961533]
[1693690102607,20.61329024,1640.5,1640.4,2.30702355]
[1693690102803,20.61329024,1640.5,1640.4,4.67111911]
[1693690103810,21.51154754,1640.5,1640.4,4.67111911]
[1693690104813,21.51154754,1640.5,1640.4,6.24607471]
[1693690105507,21.51154754,1640.5,1640.4,5.77283801]
[1693690105711,21.51154754,1640.5,1640.4,3.40874245]
[1693690105918,21.51154754,1640.5,1640.4,4.98637863]
[1693690106219,21.51154754,1640.5,1640.4,1.83378685]
[1693690106412,21.51154754,1640.5,1640.4,4.19580435]
[1693690107617,21.51154754,1640.5,1640.4,3.73766151]
[1693690108415,21.51154754,1640.5,1640.4,3.27951869]
[1693690108722,21.51154754,1640.5,1640.4,4.07009297]
[1693690109115,27.62654754,1640.5,1640.4,4.07009297]
[1693690109829,10.0,1639.8,1639.7,13.46626711]
[1693690110024,10.0,1639.8,1639.0,5.495]
[1693690110025,10.0,1639.3,1639.2,5.77199614]
[1693690110322,5.495,1639.3,1639.2,5.51499106]
[1693690110621,5.495,1639.3,1639.1,5.51499106]
[1693690110622,6.19379427,1639.3,1639.1,5.51499106]
[1693690110921,6.19379427,1639.3,1639.2,2.86716352]
[1693690110922,0.69879427,1639.3,1639.2,2.86716352]
[1693690111118,5.495,1639.3,1639.2,6.01967634]
[1693690111324,6.19379427,1639.3,1639.2,6.01967634]
[1693690111621,6.19379427,1639.3,1639.2,3.15251282]
[1693690111822,6.19379427,1639.3,1639.2,6.01967634]
[1693690113321,6.19379427,1639.3,1639.2,3.15251282]
[1693690114024,6.19379427,1639.3,1639.2,2.86716352]
[1693690114221,6.19379427,1639.3,1639.1,3.15251282]
[1693690115824,6.19379427,1639.3,1639.2,3.15251282]
[1693690119928,1.83205013,1639.3,1639.2,6.01967634]
[1693690120219,6.19379427,1639.3,1639.2,6.01967634]
[1693690120425,6.19379427,1639.3,1639.2,3.15251282]
[1693690120620,4.05706582,1639.3,1639.2,3.15251282]
[1693690120922,14.05706582,1639.3,1639.2,3.15251282]
[1693690121129,14.55098161,1639.3,1639.2,3.16080252]
[1693690121424,14.55098161,1639.3,1639.2,3.16180276]
[1693690121825,14.55098161,1639.3,1639.2,2.67080276]
[1693690122219,14.55098161,1639.3,1638.7,11.42724193]
[1693690122220,10.0,1639.1,1638.7,5.1086]
[1693690122418,10.0,1639.1,1638.9,0.061]
[1693690122623,5.495,1639.0,1638.7,10.64445678]
[1693690122826,5.495,1638.9,1638.7,10.64445678]
[1693690123127,0.91572411,1638.9,1638.8,0.061]
[1693690124929,2.4675,1639.2,1638.9,0.061]
[1693690125131,5.495,1639.0,1638.9,0.061]
[1693690125424,5.495,1639.0,1638.9,4.74880891]
[1693690125624,5.495,1639.0,1638.9,0.061]
[1693690128232,10.99,1639.0,1638.9,0.061]
[1693690129836,10.99,1639.0,1638.9,3.11401208]
[1693690130737,10.99,1639.0,1638.9,3.05301208]
[1693690131035,10.99,1639.0,1638.9,3.11401208]
[1693690132931,10.99,1639.0,1638.9,7.01181406]
[1693690133637,11.46866336,1639.0,1638.9,7.01181406]
[1693690133831,11.46866336,1639.0,1638.9,4.01980198]
[1693690134025,11.46866336,1639.0,1638.9,7.01181406]
[1693690134329,5.97366336,1639.0,1638.9,7.01181406]
[1693690134535,5.97366336,1639.0,1638.9,5.9811756]
[1693690135430,14.44718847,1639.0,1638.9,7.01146623]
[1693690135939,14.44718847,1639.0,1638.9,3.95845415]
[1693690136439,14.44718847,1639.0,1638.9,3.05301208]
[1693690137038,14.44718847,1639.0,1638.8,7.01146623]
[1693690137241,14.44718847,1639.0,1638.9,3.05301208]
[1693690137532,14.44718847,1639.0,1638.8,7.01146623]
[1693690138840,14.93706315,1639.0,1638.8,7.01146623]
[1693690139540,14.93706315,1639.0,1638.8,9.87862975]
[1693690139741,14.93706315,1639.0,1638.9,3.05301208]
[1693690140633,14.93706315,1639.0,1638.8,7.01146623]
[1693690141944,5.495,1638.9,1638.8,7.01146623]
[1693690142243,5.495,1638.9,1638.8,9.87862975]
[1693690142838,5.495,1638.9,1638.8,7.01146623]
[1693690144243,1.83121354,1638.9,1638.8,8.19011208]
[1693690144445,1.83121354,1638.9,1638.8,5.32294856]
[1693690144639,1.83121354,1638.9,1638.8,9.28065703]
[1693690144837,1.83121354,1638.9,1638.8,5.32294856]
[1693690145236,1.83121354,1638.9,1638.8,7.01195192]
[1693690145944,1.83121354,1638.9,1638.8,5.9201756]
[1693690146545,1.83121354,1638.9,1638.8,3.05301208]
[1693690150051,10.48987468,1639.0,1638.9,2.86716352]
[1693690150052,0.48987468,1639.0,1638.9,2.86716352]
[1693690150250,5.495,1639.0,1638.9,7.01759103]
[1693690150641,3.35778542,1639.0,1638.9,3.05301208]
[1693690150948,10.99,1639.0,1638.9,5.9201756]
[1693690151150,10.99,1639.0,1638.9,3.05301208]
[1693690151349,10.99,1639.0,1638.9,7.01897336]
[1693690152743,10.99,1639.0,1638.9,7.02242464]
[1693690153146,10.99,1639.0,1638.9,3.05301208]
[1693690153743,10.99,1639.0,1638.8,7.80182099]
[1693690153952,5.495,1638.9,1638.8,7.80182099]
[1693690155852,5.495,1638.9,1638.8,8.58886886]
[1693690156054,5.495,1638.9,1638.8,8.4030203]
[1693690156261,5.495,1638.9,1638.8,11.45603238]
[1693690159449,5.495,1638.9,1638.8,5.9201756]
[1693690160049,4.57905032,1638.9,1638.8,11.4909233]
[1693690161051,4.57905032,1638.9,1638.8,8.62375978]
[1693690162449,4.57905032,1638.9,1638.8,11.5519233]
[1693690164058,5.0766014,1638.9,1638.8,3.11401208]
[1693690164256,5.0766014,1638.9,1638.8,5.9811756]
[1693690164749,5.0766014,1638.9,1638.8,10.76006967]
[1693690166058,5.0766014,1638.9,1638.8,7.89290615]
[1693690166351,5.0766014,1638.9,1638.8,10.76006967]
[1693690166751,5.0766014,1638.9,1638.8,5.9811756]
[1693690166949,5.0766014,1638.9,1638.8,3.11401208]
[1693690168259,5.0766014,1638.9,1638.8,5.9811756]
[1693690168660,5.0766014,1638.9,1638.8,9.96662368]
[1693690168855,5.0766014,1638.9,1638.8,7.09946016]
[1693690169258,5.0766014,1638.9,1638.8,9.96662368]
[1693690176870,5.0766014,1638.9,1638.8,9.96784668]
[1693690177070,5.0766014,1638.9,1638.8,5.9811756]
[1693690181578,5.0766014,1638.9,1638.8,9.96827976]
[1693690182879,5.0766014,1638.9,1638.8,9.90727976]
[1693690185884,6.00354401,1638.9,1638.8,9.90727976]
[1693690188089,6.00354401,1638.9,1638.8,7.04011624]
[1693690188586,6.00354401,1638.9,1638.8,9.90727976]
[1693690188785,6.00354401,1638.9,1638.8,5.9201756]
[1693690189480,6.00354401,1638.9,1638.8,7.04005446]
[1693690189679,6.00354401,1638.9,1638.8,6.8542059]
[1693690189880,6.00354401,1638.9,1638.8,9.90721798]
[1693690196998,6.00354401,1638.9,1638.8,7.04005446]
[1693690198197,6.00354401,1638.9,1638.8,9.90721798]
[1693690200299,5.0766014,1638.9,1638.8,9.90721798]
[1693690205698,5.0766014,1638.9,1638.8,7.04005446]
[1693690206194,5.0766014,1638.9,1638.8,3.05311541]
[1693690206397,5.0766014,1638.9,1638.8,7.04070781]
[1693690207090,5.0766014,1638.9,1638.8,9.90787133]
[1693690209401,5.0766014,1638.9,1638.8,7.04070781]
[1693690209902,5.0766014,1638.9,1638.8,9.90787133]
[1693690211903,5.0766014,1638.9,1638.8,5.92027893]
[1693690212201,5.0766014,1638.9,1638.8,3.05311541]
[1693690212903,5.0766014,1638.9,1638.8,5.92027893]
[1693690220010,4.16068355,1638.9,1638.8,5.92027893]
[1693690224006,4.16068355,1638.9,1638.8,3.05311541]
[1693690226517,4.16068355,1638.9,1638.8,5.92027893]
[1693690227016,4.16068355,1638.9,1638.8,9.90662495]
[1693690229520,4.16068355,1638.9,1638.8,7.03946143]
[1693690229714,4.16068355,1638.9,1638.8,6.24287155]
[1693690230114,4.16068355,1638.9,1638.8,3.18975614]
[1693690234018,4.16068355,1638.9,1638.8,7.03946143]
[1693690234214,4.16068355,1638.9,1638.8,3.98634602]
[1693690242129,4.16068355,1638.9,1638.8,6.24175182]
[1693690242334,5.07429658,1638.9,1638.8,6.24175182]
[1693690242930,5.07429658,1638.9,1638.8,3.18863641]
[1693690248237,5.07429658,1638.9,1638.8,6.05579993]
[1693690248438,5.07429658,1638.9,1638.8,9.10891534]
[1693690249132,5.07429658,1638.9,1638.8,9.90662495]
[1693690252036,5.07429658,1638.9,1638.8,9.96762495]
[1693690253040,5.07429658,1638.9,1638.8,7.10046143]
[1693690255339,5.07429658,1638.9,1638.8,9.96762495]
[1693690256138,5.07429658,1638.9,1638.8,9.16965692]
[1693690257839,5.07429658,1638.9,1638.8,6.3024934]
[1693690260441,5.07429658,1638.9,1638.8,3.11411541]
[1693690260937,5.07429658,1638.9,1638.8,7.10046143]
[1693690263241,5.07429658,1638.9,1638.8,9.96762495]
[1693690263846,5.07429658,1638.9,1638.8,9.16976531]
[1693690264345,5.07429658,1638.9,1638.8,9.96762495]
[1693690268249,5.07429658,1638.9,1638.8,9.90662495]
[1693690271261,5.07429658,1638.9,1638.8,9.10921144]
[1693690271553,5.07429658,1638.9,1638.8,6.24208775]
[1693690272058,5.07429658,1638.9,1638.8,3.05314493]
[1693690272954,5.07429658,1638.9,1638.8,5.92030845]
[1693690273354,5.07429658,1638.9,1638.8,3.05314493]
[1693690273956,5.07429658,1638.9,1638.8,7.03932346]
[1693690274355,5.07429658,1638.9,1638.8,6.24250199]
[1693690277965,5.07429658,1638.9,1638.8,9.10966551]
[1693690278567,5.07429658,1638.9,1638.8,6.24250199]
[1693690280566,5.07429658,1638.9,1638.8,9.10966551]
[1693690283071,5.07429658,1638.9,1638.8,5.44537974]
[1693690283275,5.07429658,1638.9,1638.8,2.39223481]
[1693690287971,5.07429658,1638.9,1638.8,5.44436361]
[1693690288376,5.07429658,1638.9,1638.8,2.39090028]
[1693690289680,5.07429658,1638.9,1638.8,3.98465159]
[1693690289879,5.07429658,1638.9,1638.8,7.03811492]
[1693690290081,5.07429658,1638.9,1638.8,4.64721464]
[1693690291577,5.07429658,1638.9,1638.8,1.59375131]
[1693690292277,5.07429658,1638.9,1638.8,4.46091483]
[1693690292477,5.07429658,1638.9,1638.8,7.51437816]
[1693690293488,5.07429658,1638.9,1638.8,4.64721464]
[1693690294192,5.07429658,1638.9,1638.8,1.59375131]
[1693690294384,8.27691144,1638.9,1638.7,3.98465159]
[1693690294580,5.495,1638.8,1638.7,9.90532607]
[1693690294784,5.98068204,1638.8,1638.7,9.90532607]
[1693690298395,5.98068204,1638.8,1638.7,7.03816255]
[1693690300091,5.98068204,1638.8,1638.7,9.90532607]
[1693690301095,5.98068204,1638.8,1638.7,7.51442579]
[1693690301594,5.98068204,1638.8,1638.7,8.31157476]
[1693690305396,5.98068204,1638.8,1638.7,5.44441124]
[1693690306395,5.98068204,1638.8,1638.7,8.31157476]
[1693690306898,5.98068204,1638.8,1638.7,5.92067448]
[1693690307390,5.98068204,1638.8,1638.7,9.10854153]
[1693690313604,5.98068204,1638.8,1638.7,2.86716352]
[1693690313810,5.98068204,1638.8,1638.7,6.05392425]
[1693690314003,5.98068204,1638.8,1638.7,9.10732282]
[1693690316506,5.98068204,1638.8,1638.7,8.31103498]
[1693690318205,5.98068204,1638.8,1638.7,8.31119924]
[1693690319205,5.98068204,1638.8,1638.7,9.10807903]
[1693690319909,5.98068204,1638.8,1638.7,6.24091551]
[1693690322513,5.98068204,1638.8,1638.7,9.10807903]
[1693690326217,5.98068204,1638.8,1638.7,5.92055987]
[1693690328416,5.98068204,1638.8,1638.7,9.90495882]
[1693690331726,5.98068204,1638.8,1638.7,9.11035699]
[1693690336422,5.98068204,1638.8,1638.7,6.24319347]
[1693690336727,5.98068204,1638.8,1638.7,9.11035699]
[1693690338625,5.98068204,1638.8,1638.7,6.24319347]
[1693690338823,5.98068204,1638.8,1638.7,7.0377953]
[1693690343129,5.98068204,1638.8,1638.7,9.90495882]
[1693690346727,5.98068204,1638.8,1638.7,9.11050631]
[1693690350936,5.98068204,1638.8,1638.7,6.24334279]
[1693690352537,5.98068204,1638.8,1638.7,9.11050631]
[1693690353138,5.98068204,1638.8,1638.7,5.94334279]
[1693690353941,5.98068204,1638.8,1638.7,6.7377953]
[1693690354439,5.98068204,1638.8,1638.7,9.60495882]
[1693690355339,5.98068204,1638.8,1638.7,6.7377953]
[1693690360952,5.98068204,1638.8,1638.7,9.60495882]
[1693690361840,5.98068204,1638.8,1638.7,8.81135225]
[1693690368951,5.98068204,1638.8,1638.7,9.60495882]
[1693690374353,5.98068204,1638.8,1638.7,9.90888967]
[1693690377562,5.98068204,1638.8,1638.7,9.90883941]
[1693690380252,5.98068204,1638.8,1638.7,7.04167589]
[1693690382763,5.98068204,1638.8,1638.7,9.90883941]
[1693690383465,5.98068204,1638.8,1638.7,9.90883621]
[1693690383961,5.98068204,1638.8,1638.7,9.11118932]
[1693690391964,5.98068204,1638.8,1638.7,9.90883621]
[1693690393873,5.98068204,1638.8,1638.7,7.04167269]
[1693690395766,5.98068204,1638.8,1638.7,9.90883621]
[1693690401579,5.98068204,1638.8,1638.7,9.9115349]
[1693690407179,5.98068204,1638.8,1638.7,9.11316919]
[1693690410886,5.98068204,1638.8,1638.7,6.24600567]
[1693690411892,5.98068204,1638.8,1638.7,9.11316919]
[1693690414294,5.98068204,1638.8,1638.7,9.9115349]
[1693690415096,5.98068204,1638.8,1638.7,6.93437138]
[1693690415400,5.495,1638.8,1638.7,6.93437138]
[1693690415896,5.495,1638.8,1638.7,9.8015349]
[1693690418098,5.495,1638.8,1638.7,6.85778974]
[1693690422199,5.495,1638.8,1638.7,6.05910766]
[1693690423603,5.495,1638.8,1638.7,3.19194414]
[1693690424803,5.495,1638.8,1638.7,2.21314414]
[1693690429306,5.495,1638.8,1638.7,3.99062622]
[1693690431612,5.495,1638.8,1638.7,3.91162622]
[1693690433218,5.495,1638.8,1638.6,2.5085]
[1693690433420,5.495,1638.7,1638.6,2.5085]
[1693690433621,4.57896035,1638.7,1638.6,7.6456]
[1693690434721,14.80576034,1638.7,1638.3,0.061]
[1693690434919,5.495,1638.4,1638.3,0.061]
[1693690435119,6.2096,1638.4,1638.3,3.05417268]
[1693690435922,6.2096,1638.4,1638.2,3.05417268]
[1693690436125,5.495,1638.3,1638.2,3.05417268]
[1693690438926,5.495,1638.3,1638.2,2.56017268]
[1693690439121,5.495,1638.3,1638.0,4.9378]
[1693690439424,5.495,1638.1,1638.0,4.9378]
[1693690439823,5.495,1638.1,1638.0,2.3915]
[1693690440828,5.495,1638.1,1637.9,0.061]
[1693690441127,0.7146,1638.0,1637.9,2.5529]
[1693690441919,6.2096,1638.0,1637.9,2.5529]
[1693690444725,4.68230301,1638.0,1637.9,2.5529]
[1693690444930,4.68230301,1638.0,1637.9,0.061]
[1693690451527,5.17810835,1638.0,1637.9,0.061]
[1693690452434,5.17810835,1638.0,1637.8,2.6027]
[1693690452733,5.495,1637.9,1637.8,2.6027]
[1693690452933,5.495,1637.9,1637.8,5.1792]
[1693690454633,3.35677326,1637.9,1637.8,10.3163]
[1693690454935,3.35677326,1637.9,1637.8,7.44913648]
[1693690455334,3.35677326,1637.9,1637.8,10.6283668]
[1693690456639,3.35677326,1637.9,1637.8,7.44913648]
[1693690456938,3.35677326,1637.9,1637.8,10.6280598]
[1693690457237,3.35677326,1637.9,1637.8,7.44913648]
[1693690458130,3.35677326,1637.9,1637.8,11.42445422]
[1693690458335,3.35677326,1637.9,1637.8,5.1792]
[1693690458835,3.35677326,1637.9,1637.8,9.15451774]
[1693690459036,3.35677326,1637.9,1637.8,12.2091261]
[1693690460137,3.35677326,1637.9,1637.8,7.0299261]
[1693690460138,13.35677326,1637.9,1637.8,7.0299261]
[1693690460435,13.35677326,1637.9,1637.8,1.59009915]
[1693690461040,13.35677326,1637.9,1637.6,0.061]
[1693690461231,5.495,1637.7,1637.6,0.061]
[1693690469536,5.495,1637.6,1637.5,3.97531774]
[1693690469731,10.99,1637.6,1637.5,3.97531774]
[1693690469934,10.99,1637.6,1637.4,9.07621774]
[1693690470134,5.495,1637.5,1637.4,9.07621774]
[1693690471445,5.495,1637.5,1637.4,3.97531774]
[1693690471745,5.495,1637.5,1637.3,3.97531774]
[1693690471942,5.495,1637.4,1637.3,3.97531774]
[1693690472445,5.495,1637.4,1637.2,9.10671774]
[1693690472648,5.495,1637.3,1637.2,9.10671774]
[1693690472839,2.7448433,1637.3,1637.2,14.24381774]
[1693690473145,2.7448433,1637.3,1637.2,9.10671774]
[1693690474546,2.7448433,1637.3,1637.2,5.1314]
[1693690475247,2.7448433,1637.3,1637.2,9.10671774]
[1693690480046,2.7448433,1637.3,1637.2,5.1314]
[1693690480255,2.7448433,1637.3,1637.2,8.18716866]
[1693690484752,4.58846131,1637.4,1637.2,13.32426866]
[1693690485056,4.58846131,1637.4,1637.3,7.03564687]
[1693690485356,10.08346131,1637.4,1637.3,7.03564687]
[1693690489653,10.08346131,1637.4,1637.3,3.05576866]
[1693690490360,10.08346131,1637.4,1637.3,6.23993672]
[1693690491563,10.08346131,1637.4,1637.3,3.05576866]
[1693690492064,5.99314466,1637.4,1637.2,5.1314]
[1693690492364,5.495,1637.3,1637.2,5.1314]
[1693690492552,5.495,1637.3,1637.2,8.18755887]
[1693690494861,5.495,1637.3,1637.2,10.5764265]
[1693690495164,5.495,1637.3,1637.2,3.05615887]
[1693690495756,5.495,1637.3,1637.2,5.4450265]
[1693690496560,5.495,1637.3,1637.2,2.38886763]
[1693690496760,5.495,1637.3,1637.2,5.4450265]
[1693690501664,5.495,1637.1,1637.0,3.97987821]
[1693690501972,10.99,1637.1,1636.6,0.4434]
[1693690502167,5.495,1637.1,1637.0,3.98455314]
[1693690502468,10.99,1637.1,1637.0,3.98455314]
[1693690502671,10.99,1637.1,1636.9,3.98455314]
[1693690502862,5.495,1637.0,1636.9,3.98455314]
[1693690503061,5.495,1637.0,1636.9,6.42195314]
[1693690503673,5.495,1637.0,1636.9,2.4374]
[1693690504172,5.495,1637.0,1636.9,6.42363409]
[1693690507170,5.495,1637.0,1636.8,2.5585]
[1693690507171,15.495,1637.0,1636.8,2.5585]
[1693690507376,5.495,1636.9,1636.8,6.48672428]
[1693690507668,5.495,1636.9,1636.6,3.98932428]
[1693690507868,5.495,1636.7,1636.6,6.43012428]
[1693690510070,5.495,1636.7,1636.6,2.4408]
[1693690511977,5.495,1636.7,1636.6,6.43012428]
[1693690516569,5.495,1636.7,1636.6,2.4408]
[1693690516767,5.495,1636.7,1636.6,6.43012428]
[1693690516970,5.98245764,1636.7,1636.6,6.43012428]
[1693690517380,5.98245764,1636.7,1636.6,2.4408]
[1693690521777,5.98245764,1636.7,1636.6,5.49767782]
[1693690527784,5.98245764,1636.7,1636.6,3.05687782]
[1693690531885,5.98245764,1636.7,1636.5,5.81893948]
[1693690531886,5.495,1636.6,1636.5,5.81893948]
[1693690532078,13.5267,1636.6,1636.5,8.87586703]
[1693690532278,13.5267,1636.6,1636.5,6.24686703]
[1693690532487,13.5267,1636.6,1636.5,3.05692755]
[1693690533287,13.5267,1636.6,1636.5,3.18993948]
[1693690535890,13.5267,1636.6,1636.5,3.05692755]
[1693690536090,13.5267,1636.6,1636.4,7.04625183]
[1693690536291,10.5621,1636.6,1636.5,7.04625183]
[1693690536479,16.0571,1636.6,1636.5,3.98932428]
[1693690539187,10.99,1636.6,1636.5,6.9175878]
[1693690539392,10.99,1636.6,1636.5,9.97451535]
[1693690539594,10.99,1636.6,1636.5,7.10735183]
[1693690542093,10.99,1636.6,1636.5,9.97451535]
[1693690543498,5.495,1636.6,1636.5,5.98519107]
[1693690544091,5.495,1636.6,1636.5,9.97810521]
[1693690544296,5.495,1636.6,1636.5,2.92826352]
[1693690544495,5.495,1636.6,1636.5,5.98499199]
[1693690545695,5.495,1636.6,1636.5,9.9788014]
[1693690545898,5.495,1636.6,1636.5,5.98499199]
[1693690546501,5.495,1636.6,1636.5,9.97978794]
[1693690548404,0.48745764,1636.7,1636.5,5.98499199]
[1693690548599,3.70143724,1636.9,1636.6,9.3221484]
[1693690548794,0.92730641,1636.9,1636.8,0.0611]
[1693690549001,5.495,1636.9,1636.8,3.11782847]
[1693690549298,7.09534945,1636.9,1636.8,5.38776495]
[1693690549494,5.495,1636.9,1636.8,5.38776495]
[1693690549900,5.495,1636.9,1636.8,8.5840234]
[1693690551606,5.495,1636.9,1636.8,8.58596165]
[1693690552407,5.495,1636.9,1636.8,9.3832484]
[1693690556207,5.495,1636.9,1636.8,7.05221192]
[1693690556405,5.495,1636.9,1636.8,7.11331192]
[1693690557507,5.98582304,1636.9,1636.8,7.11331192]
[1693690558413,6.9252833,1636.9,1636.8,3.11782847]
[1693690559299,6.9252833,1636.9,1636.8,6.31579829]
[1693690559504,6.9252833,1636.9,1636.8,3.11782847]
[1693690560106,6.9252833,1636.9,1636.8,6.31579859]
[1693690565012,8.52563275,1636.9,1636.8,6.31579859]
[1693690565213,6.9252833,1636.9,1636.8,6.31579859]
[1693690570521,8.52563275,1636.9,1636.8,5.51581363]
[1693690572025,6.9252833,1636.9,1636.8,6.31579859]
[1693690580028,8.52563275,1636.9,1636.8,6.31579859]
[1693690581032,8.52563275,1636.9,1636.8,5.51638007]
[1693690581228,8.52563275,1636.9,1636.8,8.71435019]
[1693690586635,8.52563275,1636.9,1636.8,8.65325019]
[1693690587234,6.9252833,1636.9,1636.8,9.45076352]
[1693690589737,8.52563275,1636.9,1636.8,9.45076352]
[1693690589937,6.9252833,1636.9,1636.8,9.45076352]
[1693690590531,8.52563275,1636.9,1636.8,9.45076352]
[1693690592731,2.09117249,1636.9,1636.8,14.64896352]
[1693690592941,5.67553537,1637.1,1636.9,1.03730404]
[1693690593130,3.27501119,1637.1,1637.0,12.25472322]
[1693690593345,8.77001119,1637.1,1637.0,12.25472322]
[1693690593639,7.59622981,1637.1,1637.0,12.25472322]
[1693690594139,9.99675399,1637.1,1637.0,8.25492847]
[1693690594347,8.39640454,1637.1,1637.0,11.4549935]
[1693690594633,7.59929373,1637.1,1637.0,11.4549935]
[1693690598640,0.50088036,1637.1,1637.0,11.4549935]
[1693690598845,4.19391337,1637.2,1637.1,0.0611]
[1693690599136,9.68891337,1637.2,1637.1,6.69604806]
[1693690599841,9.68891337,1637.2,1637.1,5.89651189]
[1693690601538,9.68891337,1637.2,1637.1,5.5151866]
[1693690601835,10.18938401,1637.2,1637.1,5.5151866]
[1693690602545,8.58597064,1637.2,1637.1,6.31472277]
[1693690603748,8.58597064,1637.2,1637.1,5.5142403]
[1693690603946,8.58597064,1637.2,1637.1,6.31472277]
[1693690605752,3.09097064,1637.2,1637.1,6.31472277]
[1693690606945,0.50047064,1637.2,1637.1,6.31472277]
[1693690607146,8.0961,1637.3,1637.1,6.31472277]
[1693690607352,8.0961,1637.3,1637.2,10.58958045]